bitfinex/quotes_ETHUSD_20240707
["timestamp","ask_amount","ask_price","bid_price","bid_amount"]
[1720344393712,0.80845083,3016.0,3015.5,2.32128]
[1720344394006,7.89223659,3016.2,3015.6,2.32124]
[1720344394873,4.55683659,3016.2,3015.6,4.61734]
[1720344395102,8.05260768,3016.3,3015.6,4.61734]
[1720344395410,10.55422001,3016.3,3015.6,4.61734]
[1720344395883,10.55422001,3016.3,3015.6,4.61731]
[1720344396087,9.57222001,3016.3,3015.7,2.32111]
[1720344396607,9.57222001,3016.3,3015.8,2.32109]
[1720344396774,1.055422,3016.2,3015.8,2.32109]
[1720344401484,1.055422,3016.2,3015.6,6.93851]
[1720344401814,2.037422,3016.2,3015.7,2.32113]
[1720344404113,2.037422,3016.2,3015.8,2.3211]
[1720344405179,2.037422,3016.2,3015.8,4.64216]
[1720344405418,0.982,3016.2,3015.9,2.32102]
[1720344405591,5.08693424,3016.3,3016.0,2.32093]
[1720344405783,4.74100768,3016.3,3016.2,2.3208]
[1720344409318,4.55683659,3016.5,3016.4,2.32064]
[1720344409815,4.55683659,3017.0,3016.4,2.32064]
[1720344410026,3.3116,3017.2,3016.7,2.3204]
[1720344410216,5.81321233,3017.2,3016.7,2.3204]
[1720344410432,0.34592053,3017.1,3016.7,2.3204]
[1720344411796,0.34592053,3017.1,3016.8,0.06629001]
[1720344411993,9.29784427,3017.3,3017.1,2.32008]
[1720344412303,4.74100768,3017.3,3017.1,2.32008]
[1720344412815,4.74100768,3017.3,3016.9,4.64041]
[1720344413133,5.72300768,3017.3,3016.9,2.3202]
[1720344413485,5.72300768,3017.3,3016.9,4.64041]
[1720344414910,5.72300768,3017.3,3017.0,2.32018]
[1720344418420,4.74100768,3017.3,3017.0,2.32013]
[1720344418625,4.74100768,3017.3,3017.0,2.32012]
[1720344418844,4.74100768,3017.3,3017.2,2.32003]
[1720344422850,4.74100768,3017.3,3017.2,4.64006]
[1720344423213,4.74100768,3017.3,3017.2,5.62206]
[1720344423533,4.74100768,3017.3,3017.2,4.64006]
[1720344425547,3.51,3017.3,3017.2,4.64006]
[1720344427241,4.55683659,3017.8,3017.5,2.31972]
[1720344427445,4.55683659,3017.8,3017.7,2.31964]
[1720344427630,4.55683659,3017.8,3017.7,4.63928]
[1720344427832,9.29784427,3018.3,3017.9,2.31944]
[1720344428017,4.74100768,3018.3,3017.9,2.31944]
[1720344431129,4.74100768,3018.3,3017.7,2.31959]
[1720344431323,6.54035845,3018.3,3017.5,4.6395]
[1720344431529,6.88641852,3018.3,3017.5,2.31974]
[1720344431928,6.88641852,3018.3,3017.6,4.63292]
[1720344432128,6.88641852,3018.3,3017.6,2.31972]
[1720344432451,0.93369185,3018.2,3017.6,2.31972]
[1720344434453,0.93369185,3018.2,3017.4,4.63303]
[1720344434756,2.4677,3018.0,3017.3,2.31991]
[1720344434949,0.982,3017.9,3017.3,2.31991]
[1720344438235,0.982,3017.9,3017.4,2.31984]
[1720344438432,2.4677,3018.0,3017.4,2.31984]
[1720344438623,2.4677,3018.0,3017.4,4.63967]
[1720344439625,2.4677,3018.0,3017.4,2.31983]
[1720344439826,2.80783918,3018.0,3017.4,2.31983]
[1720344442141,3.15383084,3018.0,3017.4,2.31983]
[1720344442752,3.15383084,3018.0,3017.5,2.31978]
[1720344443058,2.81369166,3018.0,3017.5,2.31978]
[1720344445076,2.81369166,3018.0,3017.1,2.2967]
[1720344445077,3.79569166,3018.0,3017.1,2.2967]
[1720344445265,2.4677,3017.7,3017.1,4.64009]
[1720344445576,1.32697,3017.6,3016.9,4.64043]
[1720344445779,1.32697,3017.6,3017.0,2.32017]
[1720344445962,1.32697,3017.6,3016.9,4.64041]
[1720344446162,1.32697,3017.6,3017.0,2.32018]
[1720344446967,0.34497,3017.6,3017.0,2.32018]
[1720344447164,2.4677,3017.7,3017.0,4.6403]
[1720344447561,2.4677,3017.7,3017.0,2.32012]
[1720344449692,2.4677,3017.7,3017.1,2.32009]
[1720344450003,3.4497,3017.7,3017.1,2.32009]
[1720344451491,2.4677,3017.7,3017.1,2.32009]
[1720344453491,4.55683659,3017.9,3017.3,2.31995]
[1720344454154,5.53883659,3017.9,3017.3,4.63979]
[1720344454354,6.37408941,3017.9,3017.3,4.63979]
[1720344454565,1.81725282,3017.9,3017.3,2.31989]
[1720344454770,0.982,3017.9,3017.4,2.31987]
[1720344456491,1.92200019,3017.9,3017.4,2.31987]
[1720344456682,0.982,3017.9,3017.4,2.31987]
[1720344457076,1.92199238,3017.9,3017.4,2.31987]
[1720344457282,0.982,3017.9,3017.4,2.31987]
[1720344457476,2.30155848,3017.9,3017.4,2.31987]
[1720344457690,1.36156917,3017.9,3017.4,2.31987]
[1720344462489,0.93999595,3017.8,3017.4,2.31987]
[1720344462910,1.36156917,3017.9,3017.4,2.31987]
[1720344463225,0.93997549,3017.8,3017.4,4.6397]
[1720344463404,0.982,3017.9,3017.4,4.6397]
[1720344463704,1.92195359,3017.9,3017.4,6.9492]
[1720344464274,0.93995359,3017.9,3017.4,6.9492]
[1720344464873,0.93995359,3017.9,3017.5,2.31979]
[1720344465068,1.28594525,3018.0,3017.5,2.31979]
[1720344465968,1.28594525,3018.0,3017.7,2.31963]
[1720344466200,1.28594525,3018.0,3017.5,0.06627713]
[1720344466201,0.34599166,3018.0,3017.8,2.31956]
[1720344466401,4.74100768,3018.3,3017.9,2.31949]
[1720344469205,4.74100768,3018.3,3017.7,2.3095]
[1720344469206,4.74100768,3018.3,3018.0,2.31941]
[1720344469390,4.74100768,3018.3,3018.1,4.62879]
[1720344471427,4.74100768,3018.3,3018.1,2.31929]
[1720344472127,4.74100768,3018.3,3018.2,2.31926]
[1720344478418,4.74100768,3018.3,3018.2,6.97222]
[1720344478710,1.23100768,3018.3,3018.2,6.97222]
[1720344480126,4.55683659,3018.8,3018.4,2.31904]
[1720344480283,3.0,3019.0,3018.4,4.63809]
[1720344480627,2.3884,3019.0,3018.4,2.31904]
[1720344480790,5.3884,3019.0,3018.4,2.31904]
[1720344481128,5.73480919,3019.0,3018.4,2.31904]
[1720344481825,3.34640919,3019.0,3018.4,2.31904]
[1720344482042,0.34640919,3019.0,3018.4,2.31904]
[1720344482636,0.34640919,3019.0,3018.4,4.63809]
[1720344484351,0.34640919,3019.0,3018.5,2.31902]
[1720344485214,0.34640919,3019.0,3018.6,2.31895]
[1720344485567,4.55683659,3019.2,3018.8,2.31875]
[1720344485699,4.55683659,3019.2,3018.9,4.65241]
[1720344486148,4.55683659,3019.2,3019.0,4.63723]
[1720344486336,4.74100768,3019.3,3019.2,2.31849]
[1720344486959,4.55683659,3019.7,3019.4,2.31828]
[1720344487307,4.55683659,3019.7,3019.5,2.31824]
[1720344488242,4.55683659,3019.7,3019.3,4.63676]
[1720344488448,4.55683659,3019.7,3019.3,2.31835]
[1720344488750,4.55683659,3019.7,3019.4,2.31829]
[1720344489313,4.55683659,3019.7,3019.4,2.48229]
[1720344490121,0.982,3020.0,3019.4,2.48229]
[1720344490833,3.982,3020.0,3019.4,2.48229]
[1720344492472,3.982,3020.0,3019.4,0.164]
[1720344493647,0.982,3020.0,3019.4,4.81599]
[1720344493846,7.29180857,3020.1,3019.4,4.81599]
[1720344494353,7.29180857,3020.1,3019.4,7.13428]
[1720344494752,7.29180857,3020.1,3019.5,2.31825]
[1720344495052,4.90340857,3020.1,3019.5,2.31825]
[1720344495259,4.90340857,3020.1,3019.6,2.31817]
[1720344495856,0.34657198,3020.1,3019.8,2.3896]
[1720344496040,4.74100768,3020.3,3020.0,2.31786]
[1720344496453,4.74100768,3020.3,3020.1,2.31779]
[1720344497265,4.74100768,3020.3,3020.2,2.31772]
[1720344498035,4.74100768,3020.3,3020.2,4.63544]
[1720344498269,3.51,3020.3,3020.2,4.63544]
[1720344498578,3.51,3020.3,3020.2,5.61744]
[1720344499073,4.55683659,3020.8,3020.7,2.31734]
[1720344499586,4.55683659,3020.8,3020.7,4.63468]
[1720344501598,4.55683659,3020.8,3020.7,2.31734]
[1720344502042,8.06683659,3021.3,3020.8,2.31723]
[1720344502236,3.51,3021.3,3020.8,2.31723]
[1720344502436,3.51,3021.3,3020.6,4.63475]
[1720344502636,3.51,3021.3,3020.6,2.31735]
[1720344502943,3.51,3021.3,3020.7,2.31729]
[1720344503686,2.2895,3021.2,3020.3,3.0]
[1720344503895,2.2895,3021.2,3020.3,2.3176]
[1720344504103,2.2895,3021.2,3020.3,5.3176]
[1720344504650,2.63595196,3021.2,3020.3,5.3176]
[1720344505876,3.29438004,3021.2,3020.3,5.3176]
[1720344506193,3.29438004,3021.2,3020.4,3.0]
[1720344506391,3.29438004,3021.2,3020.3,2.3176]
[1720344506754,3.29438004,3021.2,3020.3,2.31757]
[1720344507066,0.34645196,3021.2,3020.8,2.31725]
[1720344507271,3.51,3021.3,3020.8,2.31725]
[1720344508986,3.51,3021.3,3020.9,2.31718]
[1720344510104,3.51,3021.3,3020.9,2.31712]
[1720344511456,3.51,3021.3,3021.0,2.3171]
[1720344511998,3.51,3021.3,3021.2,2.31696]
[1720344513862,3.51,3021.3,3021.2,4.63392]
[1720344519691,1.23100768,3021.5,3021.4,4.6336]
[1720344519892,1.23100768,3021.5,3021.4,6.9325]
[1720344520324,4.55683659,3021.6,3021.5,4.63346]
[1720344520570,4.55683659,3022.1,3022.0,2.31634]
[1720344520786,4.55683659,3022.1,3022.0,4.61524]
[1720344521325,3.51,3022.6,3022.2,2.31615]
[1720344521556,4.31668366,3022.6,3022.3,2.3161]
[1720344521753,3.51,3022.6,3022.3,2.3161]
[1720344524669,3.51,3022.6,3022.0,4.61521]
[1720344524670,3.51,3022.6,3022.1,2.3162]
[1720344525332,3.51,3022.6,3022.2,2.31618]
[1720344526069,3.51,3022.6,3022.0,2.31631]
[1720344526234,2.3311,3022.5,3021.9,2.31635]
[1720344526433,2.3311,3022.5,3022.0,2.31634]
[1720344528283,2.3311,3022.5,3022.0,2.31627]
[1720344528733,2.3311,3022.5,3022.1,2.31626]
[1720344528934,2.3311,3022.5,3022.2,2.31616]
[1720344529159,3.51,3022.6,3022.3,2.3161]
[1720344530388,3.51,3022.6,3022.2,2.31616]
[1720344530551,3.51,3022.6,3022.2,2.31615]
[1720344532993,3.51,3022.6,3022.2,4.63229]
[1720344534057,3.51,3022.6,3022.2,2.31614]
[1720344534266,3.51,3022.6,3021.9,4.61526]
[1720344534267,3.51,3022.6,3022.0,2.31628]
[1720344534586,2.4289,3022.5,3022.0,4.63257]
[1720344535113,2.4289,3022.5,3022.0,2.31628]
[1720344535463,2.4289,3022.5,3022.1,2.31622]
[1720344535796,3.51,3022.6,3022.1,2.31622]
[1720344535992,3.51,3022.6,3022.3,2.31607]
[1720344537209,3.51,3022.6,3022.5,2.31596]
[1720344541082,3.51,3022.6,3022.3,2.31607]
[1720344541285,3.51,3022.6,3021.9,4.75478]
[1720344541597,2.4289,3022.5,3022.1,2.31622]
[1720344542100,2.4289,3022.5,3022.2,2.31619]
[1720344544107,3.51,3022.6,3022.4,2.31603]
[1720344544408,3.51,3022.6,3022.5,2.31596]
[1720344544612,3.51,3022.6,3022.5,4.63192]
[1720344545293,3.51,3022.6,3022.5,4.79592]
[1720344546781,3.51,3022.6,3022.5,2.47996]
[1720344547169,3.51,3022.6,3022.5,4.79592]
[1720344556190,3.51,3022.6,3022.5,0.164]
[1720344556390,3.861,3022.6,3022.5,0.164]
[1720344556591,6.3342,3022.6,3022.5,0.164]
[1720344556999,5.9832,3022.6,3022.5,0.164]
[1720344557323,3.51,3022.6,3022.5,2.47996]
[1720344559415,3.51,3022.6,3022.5,4.79592]
[1720344567730,4.55683659,3023.0,3022.9,2.31565]
[1720344567931,2.4732,3023.1,3022.9,4.6313]
[1720344570026,2.4732,3023.1,3022.9,2.31565]
[1720344570260,2.72052,3023.1,3022.5,0.164]
[1720344570400,2.3068,3022.7,3022.5,0.164]
[1720344572238,2.3068,3023.0,3022.5,2.47994]
[1720344572400,2.3068,3023.0,3022.7,2.3158]
[1720344574302,3.0,3023.3,3022.8,2.31573]
[1720344574509,2.3263,3023.2,3022.8,2.31573]
[1720344575540,2.3263,3023.2,3022.9,2.31561]
[1720344576242,3.55730768,3023.4,3022.9,4.63122]
[1720344577125,3.55730768,3023.4,3023.1,2.31549]
[1720344577377,1.23100768,3023.4,3023.1,2.31549]
[1720344577660,1.23100768,3023.4,3023.3,2.31535]
[1720344578450,3.51,3023.6,3023.3,0.06614713]
[1720344578946,3.51,3023.6,3023.5,4.63038]
[1720344579747,3.51,3023.6,3023.5,4.69652144]
[1720344580442,4.55683659,3023.8,3023.7,4.63008]
[1720344580639,14.732979,3024.4,3023.7,4.63008]
[1720344580640,4.55683659,3024.3,3024.2,2.31466]
[1720344580819,4.50683659,3024.3,3024.2,2.31466]
[1720344581828,4.50683659,3024.3,3024.2,4.62932]
[1720344583534,4.50683659,3024.3,3024.2,2.31466]
[1720344583732,4.50683659,3024.3,3024.0,2.31477]
[1720344584250,4.50683659,3024.3,3023.9,5.31483]
[1720344584472,4.50683659,3024.3,3024.0,2.31474]
[1720344585370,2.3263,3024.5,3024.0,2.31474]
[1720344586134,2.3263,3024.5,3024.1,2.3147]
[1720344586476,2.3263,3024.5,3024.0,2.31474]
[1720344586771,2.3263,3024.5,3024.1,2.31473]
[1720344587442,4.50683659,3024.7,3024.2,2.31464]
[1720344588261,4.50683659,3024.7,3024.1,2.31472]
[1720344589373,5.66425102,3024.7,3023.9,5.31486]
[1720344589723,4.50683659,3024.7,3024.2,2.31464]
[1720344589927,4.50683659,3024.7,3024.1,2.31473]
[1720344590730,4.50683659,3024.7,3023.9,2.31489]
[1720344590927,2.3263,3024.6,3023.7,2.31501]
[1720344591133,0.68331366,3024.5,3023.7,2.31501]
[1720344591374,0.68331366,3024.5,3023.7,2.31499]
[1720344592158,2.3263,3024.4,3023.8,2.31496]
[1720344593169,2.3263,3024.4,3023.3,2.31533]
[1720344593382,2.3263,3024.4,3023.3,2.3153]
[1720344593530,0.53526137,3024.3,3023.5,2.31515]
[1720344595324,0.53526137,3024.3,3023.5,4.6303]
[1720344595697,0.53526137,3024.3,3023.6,2.3151]
[1720344595864,6.87793659,3024.7,3023.9,2.31483]
[1720344596216,6.87793659,3024.7,3024.0,2.31477]
[1720344596370,6.87793659,3024.7,3024.1,2.31472]
[1720344597895,6.87793659,3024.7,3023.4,3.0]
[1720344597896,6.87793659,3024.7,3023.7,2.31498]
[1720344598207,1.23779366,3024.6,3023.7,2.31498]
[1720344599007,1.23779366,3024.6,3023.8,2.31495]
[1720344599683,1.23779366,3024.6,3023.9,2.31488]
[1720344600070,6.87793659,3024.7,3024.0,2.3148]
[1720344601692,6.87793659,3024.7,3024.0,2.31475]
[1720344601997,6.87793659,3024.7,3024.3,2.31452]
[1720344602370,6.87793659,3024.7,3024.1,2.31467]
[1720344602704,0.68779366,3024.6,3024.1,2.31467]
[1720344602902,0.68779366,3024.6,3023.4,3.0]
[1720344603108,0.68779366,3024.6,3023.9,2.31484]
[1720344603309,2.3711,3024.5,3023.3,2.31533]
[1720344603485,2.3711,3024.3,3023.1,4.63089]
[1720344603690,3.51,3023.9,3022.9,2.31561]
[1720344603982,2.3711,3023.8,3023.1,2.31547]
[1720344604406,2.3711,3023.8,3023.1,2.31544]
[1720344604706,2.3711,3023.8,3023.2,2.31542]
[1720344605705,2.3711,3023.8,3023.1,2.31544]
[1720344605869,3.53299443,3023.8,3023.1,2.31544]
[1720344606290,3.53299443,3023.8,3023.1,4.63091]
[1720344606614,2.3711,3023.8,3022.8,0.06615331]
[1720344606820,4.74100768,3023.9,3023.4,2.31527]
[1720344607120,4.74100768,3023.9,3023.8,2.31496]
[1720344607588,4.74100768,3023.9,3023.8,6.94488]
[1720344608215,3.51,3023.9,3023.8,6.94488]
[1720344608515,4.50683659,3024.4,3024.3,2.31458]
[1720344609023,4.50683659,3024.4,3024.3,4.62916]
[1720344609381,4.50683659,3024.4,3024.3,2.31458]
[1720344610815,4.50683659,3024.4,3024.2,2.31464]
[1720344611025,2.3799,3024.3,3024.0,2.31474]
[1720344611191,2.3799,3024.3,3024.0,2.26474]
[1720344611710,2.3799,3024.3,3023.9,2.31488]
[1720344613010,2.61789,3024.3,3023.6,2.31508]
[1720344613209,0.32857,3023.4,3023.1,5.31549]
[1720344613505,0.32857,3023.4,3023.1,2.31549]
[1720344614507,0.32857,3023.4,3022.9,2.31561]
[1720344614806,0.32857,3023.4,3022.7,2.31574]
[1720344614975,0.32857,3023.4,3022.9,2.3156]
[1720344615376,0.32857,3023.4,3023.0,2.31557]
[1720344616206,0.32857,3023.4,3022.7,2.31575]
[1720344616382,0.599417,3023.4,3022.7,2.31575]
[1720344617696,2.4513,3023.3,3022.6,2.31585]
[1720344618094,2.4513,3023.3,3022.6,4.6317]
[1720344618414,2.4513,3023.3,3022.6,2.31585]
[1720344618610,2.7563717,3023.3,3022.6,2.31585]
[1720344618810,2.7563717,3023.3,3022.6,4.63167]
[1720344619111,2.7563717,3023.3,3022.6,2.31582]
[1720344619313,2.7563717,3023.3,3022.5,5.31594]
[1720344620182,2.7563717,3023.3,3022.5,2.31594]
[1720344620421,0.27563717,3023.2,3022.5,2.31594]
[1720344620920,0.27563717,3023.2,3022.3,7.63215]
[1720344621117,0.27563717,3023.2,3022.4,2.31602]
[1720344621426,0.27563717,3023.2,3022.3,2.31605]
[1720344621591,0.72337738,3023.1,3022.4,2.31603]
[1720344622892,0.27563717,3023.2,3022.5,2.38212961]
[1720344623086,6.95813659,3023.3,3022.8,2.31569]
[1720344623386,4.50683659,3023.6,3022.4,0.06616147]
[1720344623586,4.50683659,3023.6,3023.5,2.31519]
[1720344623800,3.51,3023.8,3023.7,2.31504]
[1720344624822,3.51,3023.8,3023.7,1.96504]
[1720344625803,3.51,3023.8,3023.5,2.31519]
[1720344626913,3.51,3023.8,3023.3,4.63058]
[1720344627119,3.51,3023.8,3023.4,2.31525]
[1720344627293,3.51,3023.8,3023.7,2.31504]
[1720344628118,3.51,3023.8,3023.5,2.31512]
[1720344628724,3.51,3023.8,3023.7,2.31504]
[1720344631725,4.50683659,3024.1,3023.8,2.3149]
[1720344631945,4.50683659,3024.1,3024.0,4.62962]
[1720344632730,2.4513,3025.5,3024.0,0.06613113]
[1720344632897,1.23100768,3025.3,3024.8,2.31413]
[1720344633407,1.23100768,3025.3,3024.9,2.31411]
[1720344633604,1.23100768,3025.3,3024.7,2.31423]
[1720344634202,1.23100768,3025.3,3024.5,4.62878]
[1720344634520,1.23100768,3025.3,3024.6,2.31434]
[1720344634521,0.42410077,3025.2,3024.6,2.31434]
[1720344635095,0.42410077,3025.2,3024.7,2.31421]
[1720344636048,0.42410077,3025.2,3024.5,2.31437]
[1720344636264,1.23100768,3025.3,3025.0,2.31401]
[1720344636434,1.23100768,3025.3,3024.8,2.31417]
[1720344636943,1.23100768,3025.3,3024.9,2.31412]
[1720344637097,1.23100768,3025.3,3024.1,2.2949]
[1720344637302,1.23100768,3025.3,3024.5,2.31436]
[1720344637527,0.47410077,3025.2,3024.7,2.31425]
[1720344638239,1.23100768,3025.3,3024.9,2.3141]
[1720344638600,1.23100768,3025.3,3024.8,2.31419]
[1720344638906,1.23100768,3025.3,3024.7,2.31427]
[1720344639130,1.23100768,3025.3,3024.5,2.31439]
[1720344639131,1.23100768,3025.3,3024.5,2.31435]
[1720344640222,1.23100768,3025.3,3024.1,2.31467]
[1720344640396,2.3502,3025.1,3024.4,2.31448]
[1720344640607,2.3502,3025.1,3024.5,2.31441]
[1720344640792,2.3502,3025.1,3024.5,4.62877]
[1720344641231,2.3502,3025.1,3024.6,2.31434]
[1720344642027,3.2064145,3025.1,3024.6,2.31434]
[1720344642235,3.2064145,3025.1,3024.5,4.62873]
[1720344642595,0.47410077,3025.2,3024.2,2.31464]
[1720344642799,0.47410077,3025.2,3024.6,2.31432]
[1720344642997,0.47410077,3025.2,3024.6,4.62863]
[1720344643202,0.47410077,3025.2,3024.6,2.31431]
[1720344643896,2.3502,3025.1,3024.4,2.31446]
[1720344644098,0.28243008,3025.0,3024.4,2.31446]
[1720344644302,0.28243008,3025.0,3024.4,4.6289]
[1720344644533,0.28243008,3025.0,3024.4,2.31444]
[1720344644928,0.28243008,3025.0,3024.5,2.31442]
[1720344645138,0.28243008,3025.0,3024.3,5.31452]
[1720344645436,0.28243008,3025.0,3024.4,2.31449]
[1720344645636,0.28243008,3025.0,3024.4,4.62894]
[1720344645932,0.28243008,3025.0,3024.5,2.31442]
[1720344646158,2.3502,3025.1,3024.5,2.31442]
[1720344646627,2.3502,3025.1,3024.0,3.0]
[1720344646628,0.47410077,3025.2,3024.7,2.31425]
[1720344646941,0.47410077,3025.2,3024.3,4.62907]
[1720344647099,2.2544,3025.1,3024.3,2.31451]
[1720344649005,2.2544,3025.1,3024.3,4.62904]
[1720344649205,0.27285008,3025.0,3024.4,2.31449]
[1720344649418,2.2544,3025.1,3024.4,2.31449]
[1720344649602,2.2544,3025.1,3024.5,2.31443]
[1720344650236,2.2544,3025.1,3024.3,2.31454]
[1720344651768,2.2544,3025.1,3024.1,2.31472]
[1720344651963,2.60042711,3025.1,3024.1,4.6294]
[1720344652166,0.30745279,3025.0,3024.1,4.6294]
[1720344652374,0.30745279,3025.0,3024.1,2.31468]
[1720344653264,2.2544,3024.9,3024.1,2.31468]
[1720344654446,2.2544,3024.9,3024.2,2.31465]
[1720344655169,2.2544,3024.9,3023.9,2.31485]
[1720344655377,2.3353,3024.7,3023.9,2.31485]
[1720344655534,2.3353,3024.7,3023.9,2.31484]
[1720344656767,2.3353,3024.7,3024.1,2.31473]
[1720344658648,2.3353,3024.7,3024.1,4.62946]
[1720344658849,2.3353,3024.7,3024.1,2.31473]
[1720344659046,0.23353,3024.6,3024.2,2.31464]
[1720344659466,0.23353,3024.6,3024.0,2.31474]
[1720344659674,0.23353,3024.6,3023.9,2.31484]
[1720344660267,0.23353,3024.6,3023.9,4.62968]
[1720344660580,0.256883,3024.5,3023.7,2.315]
[1720344660762,0.256883,3024.5,3023.7,4.63]
[1720344660763,2.3353,3024.4,3023.7,4.63]
[1720344661077,2.3353,3024.4,3023.7,2.315]
[1720344661641,2.3353,3024.4,3023.3,3.0]
[1720344661642,2.3353,3024.4,3023.5,2.31515]
[1720344661850,2.3353,3024.4,3023.7,2.31502]
[1720344662395,2.3353,3024.4,3023.6,2.3151]
[1720344662706,0.68421366,3024.3,3023.6,2.3151]
[1720344663116,0.68421366,3024.3,3023.2,2.31537]
[1720344663117,7.07630768,3024.2,3023.2,2.31537]
[1720344663412,7.07630768,3024.2,3023.5,2.31518]
[1720344663593,4.74100768,3024.2,3023.8,2.31495]
[1720344663767,5.55167,3024.2,3023.8,2.31495]
[1720344664100,5.55167,3024.2,3023.6,4.69630851]
[1720344664304,5.55167,3024.2,3023.6,2.31506]
[1720344664510,5.55167,3024.2,3023.4,2.31523]
[1720344664806,0.62358837,3024.1,3023.6,2.31511]
[1720344665015,2.3353,3024.0,3023.4,2.31523]
[1720344666182,2.3353,3024.0,3023.2,2.3154]
[1720344666385,2.3353,3024.0,3023.2,2.31537]
[1720344667165,2.3353,3024.0,3023.0,2.3155]
[1720344667394,2.63118884,3023.9,3023.0,4.63101]
[1720344667615,2.63118884,3023.9,3022.6,2.31584]
[1720344667904,2.63118884,3023.9,3022.8,2.31571]
[1720344667905,2.8853,3023.8,3022.8,2.31571]
[1720344668393,2.8853,3023.8,3022.6,2.31581]
[1720344668616,2.8853,3023.8,3022.6,2.31584]
[1720344668617,2.3353,3023.6,3022.6,2.31584]
[1720344669493,0.55,3023.5,3022.4,2.31602]
[1720344669680,1.23100768,3023.2,3022.4,2.31602]
[1720344670279,4.74100768,3023.2,3022.4,2.31602]
[1720344670490,4.74100768,3023.2,3022.3,2.3161]
[1720344670491,2.3353,3023.1,3022.3,2.3161]
[1720344670700,0.70763077,3023.0,3022.1,2.31622]
[1720344670876,0.70763077,3023.0,3022.3,2.3161]
[1720344671595,0.70763077,3023.0,3022.1,2.31621]
[1720344671797,2.3353,3022.9,3022.1,2.31621]
[1720344672108,0.30429308,3022.8,3022.2,2.31617]
[1720344672308,2.3353,3022.9,3022.3,2.31611]
[1720344673194,2.3353,3022.9,3022.0,2.31631]
[1720344674312,2.3353,3022.9,3021.8,2.31647]
[1720344674313,2.3353,3022.9,3021.8,2.31643]
[1720344674707,2.2775,3022.8,3021.8,4.63286]
[1720344675009,2.2775,3022.8,3021.9,3.0]
[1720344675305,2.31593,3022.6,3021.4,2.31678]
[1720344675471,2.2775,3022.1,3021.1,2.31697]
[1720344675773,2.2775,3022.1,3021.3,2.31683]
[1720344675972,2.85625,3022.1,3021.3,2.31683]
[1720344676174,4.08725768,3022.1,3021.3,2.31683]
[1720344676375,4.08725768,3022.1,3021.3,2.31681]
[1720344676574,4.08725768,3022.1,3021.3,2.31685]
[1720344676972,4.08725768,3022.1,3021.1,2.317]
[1720344677177,1.21040943,3022.0,3021.1,2.317]
[1720344680215,1.21040943,3022.0,3021.1,4.63398]
[1720344680414,1.21040943,3022.0,3021.1,2.31698]
[1720344680786,1.21040943,3022.0,3021.3,2.31686]
[1720344681619,1.21040943,3022.0,3021.1,2.31698]
[1720344681788,0.52976671,3021.9,3021.0,3.0]
[1720344681987,0.52976671,3021.9,3020.9,2.31713]
[1720344682193,0.52976671,3021.9,3021.1,2.31697]
[1720344682409,0.52976671,3021.9,3021.2,2.31694]
[1720344683410,2.2775,3021.8,3021.0,5.31705]
[1720344683692,0.28072667,3021.7,3021.0,5.31705]
[1720344685022,0.28072667,3021.7,3021.1,2.31702]
[1720344686093,0.28072667,3021.7,3021.0,3.0]
[1720344686405,0.28072667,3021.7,3020.9,2.31713]
[1720344686894,2.2775,3021.6,3020.9,4.63426]
[1720344687102,2.53332267,3021.6,3021.0,2.31711]
[1720344688406,2.53332267,3021.6,3020.7,2.3173]
[1720344688607,2.53332267,3021.6,3020.9,2.31714]
[1720344688807,2.53332267,3021.6,3020.7,2.3173]
[1720344689419,2.53332267,3021.6,3020.8,2.31726]
[1720344689629,0.28140493,3021.5,3020.8,2.31726]
[1720344689940,2.2775,3021.4,3020.6,2.31735]
[1720344690135,2.2775,3021.4,3020.5,2.31746]
[1720344690136,3.51,3021.2,3020.5,2.31746]
[1720344690336,2.2775,3021.1,3020.3,2.3176]
[1720344690644,2.6285,3021.1,3020.3,4.63519]
[1720344690825,3.85950768,3021.1,3020.1,2.31776]
[1720344691029,2.2775,3021.0,3020.1,2.31776]
[1720344691403,2.2775,3021.0,3020.3,2.31764]
[1720344691639,3.01445077,3021.0,3020.3,4.6352]
[1720344692202,3.01445077,3021.0,3020.4,2.31756]
[1720344692505,2.2775,3021.0,3020.6,2.3174]
[1720344692712,1.23100768,3021.1,3020.8,2.31724]
[1720344693214,1.23100768,3021.1,3021.0,2.31711]
[1720344694742,1.23100768,3021.1,3020.5,2.31746]
[1720344694939,1.23100768,3021.1,3020.5,4.6349]
[1720344695131,1.23100768,3021.1,3020.5,4.63488]
[1720344695327,1.70510845,3021.1,3020.5,2.31744]
[1720344696056,1.22900768,3021.1,3020.3,2.31763]
[1720344696265,2.3954,3021.0,3020.3,2.31759]
[1720344696418,2.3954,3021.0,3020.4,2.31752]
[1720344697356,2.3954,3021.0,3020.5,2.31748]
[1720344698064,2.3954,3021.0,3020.3,2.31759]
[1720344698351,2.3954,3021.0,3020.3,4.63518]
[1720344698546,2.3954,3021.0,3020.4,2.31756]
[1720344698914,3.10884077,3021.0,3020.4,2.31756]
[1720344699325,3.10884077,3021.0,3020.4,2.31753]
[1720344699326,2.3954,3021.0,3020.4,2.31753]
[1720344699527,2.3954,3021.0,3020.7,2.31733]
[1720344700874,2.3954,3021.0,3020.6,2.31735]
[1720344701061,1.22900768,3021.1,3020.8,2.31719]
[1720344701371,1.22900768,3021.1,3021.0,2.31711]
[1720344701580,1.22900768,3021.1,3021.0,4.63422]
[1720344703564,1.22900768,3021.1,3021.0,2.31711]
[1720344703763,1.22900768,3021.1,3020.7,2.31733]
[1720344703943,1.22900768,3021.1,3020.8,2.31725]
[1720344704139,1.22900768,3021.1,3021.0,2.31711]
[1720344704566,1.22900768,3021.1,3020.8,4.63445]
[1720344704768,1.22900768,3021.1,3020.8,2.3172]